bitfinex/quotes_BTCUSD_20250825
["timestamp","ask_amount","ask_price","bid_price","bid_amount"]
[1756153126249,6.06795563,110730.0,110720.0,0.25]
[1756153127229,6.05567144,110730.0,110720.0,0.25]
[1756153127393,5.96385445,110730.0,110720.0,0.25]
[1756153127615,5.77553445,110730.0,110720.0,0.25]
[1756153127793,5.9636964,110730.0,110720.0,0.25]
[1756153127996,5.7060564,110730.0,110720.0,0.25]
[1756153128175,5.54592957,110730.0,110720.0,0.25]
[1756153128400,5.36076957,110730.0,110720.0,0.25]
[1756153128655,5.36050957,110730.0,110720.0,0.25]
[1756153128871,5.36076957,110730.0,110720.0,0.25]
[1756153129100,5.70076957,110730.0,110720.0,0.25]
[1756153129329,4.88103809,110730.0,110720.0,0.27264902]
[1756153129544,0.51318457,110730.0,110720.0,0.53323219]
[1756153129755,0.51018457,110730.0,110720.0,0.60462027]
[1756153129977,0.51118457,110730.0,110720.0,0.60462027]
[1756153130855,0.51118457,110730.0,110720.0,0.60662027]
[1756153131070,0.51118457,110730.0,110720.0,0.7872161]
[1756153131479,0.01757571,110730.0,110720.0,0.7872161]
[1756153132524,0.01757571,110730.0,110720.0,0.82717555]
[1756153132746,0.01657571,110730.0,110720.0,0.82517555]
[1756153132978,0.01657571,110730.0,110720.0,0.82717555]
[1756153133229,0.49604719,110730.0,110720.0,0.82705555]
[1756153133736,0.49604719,110730.0,110720.0,0.63913555]
[1756153134005,0.01657571,110730.0,110720.0,0.75247238]
[1756153134210,0.49604719,110730.0,110720.0,0.56963238]
[1756153134435,0.49604719,110730.0,110720.0,0.75747238]
[1756153134647,0.49604719,110730.0,110720.0,0.57679655]
[1756153135069,0.01657571,110730.0,110720.0,0.75743238]
[1756153135482,0.49604719,110730.0,110720.0,0.75743238]
[1756153135776,0.49604719,110730.0,110720.0,0.75239238]
[1756153135978,0.49604719,110730.0,110720.0,0.75439238]
[1756153136181,0.51018315,110730.0,110720.0,0.75439238]
[1756153136364,0.51018315,110730.0,110720.0,0.75435238]
[1756153136738,0.51018315,110730.0,110720.0,0.38599655]
[1756153136940,0.51019483,110730.0,110720.0,0.50228847]
[1756153137150,0.51019483,110730.0,110720.0,0.6829243]
[1756153137566,0.51019483,110730.0,110720.0,0.06460847]
[1756153137801,0.51045483,110730.0,110720.0,0.24704847]
[1756153138020,0.51019483,110730.0,110720.0,0.24704847]
[1756153138232,0.51019483,110730.0,110720.0,0.09423132]
[1756153138438,0.51019483,110730.0,110720.0,0.20704902]
[1756153138642,0.03072335,110730.0,110720.0,0.20704902]
[1756153138847,0.03072335,110730.0,110720.0,0.20504902]
[1756153139062,0.03072335,110730.0,110720.0,0.20604902]
[1756153139484,4.87804835,110730.0,110720.0,0.23379892]
[1756153139688,4.87804835,110730.0,110720.0,0.23902892]
[1756153140104,0.51019483,110730.0,110720.0,0.23902892]
[1756153140317,0.47947148,110730.0,110720.0,0.23902892]
[1756153140531,0.3541371,110750.0,110730.0,0.01744902]
[1756153140737,0.3541371,110750.0,110730.0,0.05125031]
[1756153140738,0.47947148,110740.0,110730.0,0.05125031]
[1756153140944,0.3541371,110750.0,110730.0,0.05125031]
[1756153141153,0.47947148,110740.0,110730.0,0.05331031]
[1756153141363,0.47947148,110740.0,110730.0,0.42449983]
[1756153141626,0.47947148,110740.0,110730.0,0.02267902]
[1756153141819,6.12633544,110740.0,110730.0,0.20480902]
[1756153142245,0.47947148,110740.0,110730.0,0.21003902]
[1756153143166,0.47947148,110740.0,110730.0,0.20995902]
[1756153143386,0.47947148,110740.0,110730.0,0.01744902]
[1756153143387,6.12633544,110740.0,110730.0,0.01744902]
[1756153143608,5.32705648,110740.0,110730.0,0.01744902]
[1756153143833,5.32679648,110740.0,110730.0,0.01744902]
[1756153144271,5.32679648,110740.0,110730.0,0.04758737]
[1756153144505,5.32679648,110740.0,110730.0,0.04235737]
[1756153144726,5.32705648,110740.0,110730.0,0.01744902]
[1756153144947,5.32705648,110740.0,110710.0,0.06948]
[1756153144948,6.12633544,110740.0,110710.0,0.06948]
[1756153145175,0.47947148,110720.0,110700.0,0.07567317]
[1756153145420,5.31679648,110710.0,110700.0,0.07250317]
[1756153145625,0.47973148,110710.0,110690.0,0.04312807]
[1756153145869,0.47947148,110700.0,110690.0,0.23024807]
[1756153146097,0.18716,110710.0,110690.0,0.23230807]
[1756153146533,0.47947148,110700.0,110690.0,0.23245195]
[1756153146775,0.47947148,110700.0,110690.0,0.24990097]
[1756153146995,0.47947148,110700.0,110690.0,0.30806294]
[1756153147221,0.47947148,110700.0,110690.0,0.24990097]
[1756153147464,0.01413996,110710.0,110700.0,0.01744902]
[1756153147685,0.01413996,110710.0,110700.0,0.01950902]
[1756153147686,0.49361144,110710.0,110700.0,0.01950902]
[1756153147909,0.49361144,110710.0,110700.0,0.02267902]
[1756153148369,0.49361144,110710.0,110700.0,0.20967902]
[1756153148805,0.49361144,110710.0,110700.0,0.433594]
[1756153149019,0.49361144,110710.0,110700.0,0.50909717]
[1756153149732,0.01413996,110710.0,110700.0,0.02567902]
[1756153149947,0.49361144,110710.0,110700.0,0.21259902]
[1756153150173,0.49361144,110710.0,110700.0,0.39326749]
[1756153150392,0.01413996,110710.0,110700.0,0.39326749]
[1756153150622,0.49361144,110710.0,110700.0,0.39326749]
[1756153150849,0.49361144,110710.0,110700.0,0.02567902]
[1756153151075,0.49387144,110710.0,110700.0,0.02044902]
[1756153151312,0.49387144,110710.0,110700.0,0.18984]
[1756153151524,0.49387144,110710.0,110700.0,0.02044902]
[1756153152410,0.47973148,110710.0,110700.0,0.01744902]
[1756153152631,0.47973148,110710.0,110700.0,0.01944902]
[1756153152852,5.65705648,110710.0,110700.0,0.002]
[1756153153070,5.86038281,110710.0,110700.0,0.002]
[1756153153332,5.86054281,110710.0,110700.0,0.002]
[1756153153778,6.1712843,110710.0,110700.0,0.002]
[1756153154004,6.26421347,110710.0,110700.0,0.002]
[1756153154914,0.62066847,110700.0,110690.0,0.00014388]
[1756153155122,6.75371114,110700.0,110690.0,0.00014388]
[1756153155338,6.80724965,110700.0,110690.0,0.00014388]
[1756153155769,6.75369912,110700.0,110690.0,0.00014388]
[1756153155992,0.1,110680.0,110660.0,0.07250317]
[1756153156222,7.14858286,110670.0,110660.0,0.07250317]
[1756153156445,5.177745,110670.0,110640.0,0.07250317]
[1756153156662,0.81947148,110650.0,110640.0,0.07264694]
[1756153156878,5.84335648,110650.0,110640.0,0.07264694]
[1756153157328,5.84361648,110650.0,110640.0,0.07264694]
[1756153157760,5.85772483,110650.0,110640.0,0.00014377]
[1756153157975,5.67120483,110650.0,110640.0,0.00014377]
[1756153158190,5.85772483,110650.0,110640.0,0.00014377]
[1756153158661,5.67120483,110650.0,110640.0,0.00314377]
[1756153158883,5.85742483,110650.0,110640.0,0.08087694]
[1756153159106,5.67094483,110650.0,110640.0,0.13835517]
[1756153159337,5.67094483,110650.0,110640.0,0.00014377]
[1756153159557,5.67120483,110650.0,110640.0,0.00014377]
[1756153159783,5.67094483,110650.0,110640.0,0.02282279]
[1756153159991,5.85738483,110650.0,110640.0,0.02582279]
[1756153160236,5.33094483,110650.0,110640.0,0.02582279]
[1756153160457,5.33094483,110650.0,110640.0,0.32253826]
[1756153160676,0.49361983,110650.0,110640.0,0.32253826]
[1756153160893,0.49361983,110650.0,110640.0,0.50893826]
[1756153161110,0.71890546,110680.0,110660.0,0.01744902]
[1756153161111,0.01190546,110680.0,110660.0,0.01744902]
[1756153161333,5.31705648,110670.0,110640.0,0.1192628]
[1756153161571,4.84014896,110660.0,110650.0,0.01744902]
[1756153161792,4.837585,110660.0,110640.0,0.02376279]
[1756153162008,4.838325,110650.0,110640.0,0.02959279]
[1756153162256,0.001,110650.0,110640.0,0.20041923]
[1756153162473,0.001,110650.0,110640.0,0.01965279]
[1756153162700,0.48047148,110650.0,110640.0,0.02982279]
[1756153162932,0.47947148,110650.0,110640.0,0.25597137]
[1756153163360,0.01229836,110680.0,110670.0,0.01952852]
[1756153163628,5.52264166,110680.0,110670.0,0.01952852]
[1756153163838,5.51981821,110680.0,110670.0,0.01952852]
[1756153164054,5.33353821,110680.0,110670.0,0.01952852]
[1756153164273,4.86591423,110680.0,110670.0,0.04220754]
[1756153164496,0.01648173,110680.0,110670.0,0.2452191]
[1756153164710,0.25576,110700.0,110680.0,0.01744902]
[1756153164929,4.8550861,110690.0,110680.0,0.01744902]
[1756153165152,4.85382144,110690.0,110680.0,0.02061902]
[1756153165608,0.01649644,110690.0,110680.0,0.20338014]
[1756153165832,0.47947148,110690.0,110680.0,0.02267902]
[1756153166083,0.47947148,110690.0,110680.0,0.20638014]
[1756153166299,0.47947148,110690.0,110680.0,0.02567902]
[1756153166573,0.47947148,110690.0,110680.0,0.20638014]
[1756153167266,0.47947148,110690.0,110680.0,0.02567902]
[1756153167483,0.19814228,110700.0,110680.0,0.02267902]
[1756153167707,0.47947148,110690.0,110680.0,0.02267902]
[1756153167929,0.47947148,110690.0,110680.0,0.02667902]
[1756153168373,0.47947148,110690.0,110680.0,0.03167902]
[1756153168644,0.47947148,110690.0,110680.0,0.2592562]
[1756153169082,0.47947148,110690.0,110680.0,0.03167902]
[1756153169300,0.47947148,110690.0,110680.0,0.21238014]
[1756153169779,0.47947148,110690.0,110680.0,0.03167902]
[1756153170013,0.49598649,110690.0,110680.0,0.02644902]
[1756153170438,0.49598649,110690.0,110680.0,0.03165902]
[1756153170885,0.49598649,110690.0,110680.0,0.02265902]
[1756153171136,0.51012937,110690.0,110680.0,0.02265902]
[1756153171325,0.51012937,110690.0,110680.0,0.02865902]
[1756153171977,0.03065789,110690.0,110680.0,0.3275177]
[1756153172194,0.49145376,110700.0,110690.0,0.01744902]
[1756153172419,0.50798391,110700.0,110690.0,0.20024381]
[1756153172631,0.50798391,110700.0,110690.0,0.20334381]
[1756153172853,0.02851243,110700.0,110690.0,0.20334381]
[1756153173074,0.02851243,110700.0,110690.0,0.23073319]
[1756153173075,0.01653015,110700.0,110690.0,0.23073319]
[1756153173619,0.01181369,110720.0,110710.0,0.01744902]
[1756153173843,0.01195746,110720.0,110710.0,0.01955902]
[1756153174059,0.01195746,110720.0,110710.0,0.02265902]
[1756153174060,0.47961525,110720.0,110710.0,0.02265902]
[1756153174276,0.49615452,110720.0,110710.0,0.02265902]
[1756153174515,0.49615452,110720.0,110710.0,0.02165902]
[1756153174950,0.5080486,110720.0,110710.0,0.02165902]
[1756153175160,0.5080486,110720.0,110710.0,0.02565902]
[1756153175377,0.5080486,110720.0,110710.0,0.02165902]
[1756153175602,0.5080486,110720.0,110710.0,0.02765902]
[1756153176050,5.3456336,110720.0,110710.0,0.006]
[1756153176947,5.20616212,110720.0,110700.0,0.01744902]
[1756153177166,0.36857712,110720.0,110710.0,0.00521]
[1756153177399,5.6856336,110720.0,110700.0,0.06013173]
[1756153177679,5.31679648,110710.0,110700.0,0.06013173]
[1756153177890,0.49601075,110710.0,110700.0,0.01744902]
[1756153178321,0.49601075,110710.0,110700.0,0.02265902]
[1756153178548,0.03067983,110710.0,110700.0,0.02265902]
[1756153178763,0.51015131,110710.0,110700.0,0.02265902]
[1756153179001,0.51015131,110710.0,110700.0,0.02465902]
[1756153179655,0.03067983,110710.0,110700.0,0.31691286]
[1756153180329,0.49361204,110710.0,110700.0,0.06374122]
[1756153180541,0.49361204,110710.0,110700.0,0.01944902]
[1756153180542,5.34749388,110710.0,110700.0,0.01944902]
[1756153180760,0.51042888,110710.0,110700.0,0.01944902]
[1756153181265,0.51042888,110710.0,110700.0,0.02465902]
[1756153181266,0.51016888,110710.0,110700.0,0.02465902]
[1756153181508,5.68775388,110710.0,110700.0,0.01944902]
[1756153181711,5.67361332,110710.0,110700.0,0.01944902]
[1756153182566,5.67361289,110710.0,110700.0,0.01944902]
[1756153182790,5.85881289,110710.0,110700.0,0.002]
[1756153183013,5.85897289,110710.0,110700.0,0.002]
[1756153183228,5.19414141,110710.0,110700.0,0.002]
[1756153183439,5.85877289,110710.0,110700.0,0.002]
[1756153183653,0.34,110700.0,110680.0,0.0031]
[1756153183870,0.48537786,110690.0,110670.0,0.06124825]
[1756153184107,0.48537786,110690.0,110670.0,0.06434825]
[1756153184108,5.31679648,110680.0,110670.0,0.06434825]
[1756153184321,0.47947148,110690.0,110680.0,0.01744902]
[1756153184534,4.837585,110690.0,110670.0,0.06124825]
[1756153184744,5.31679648,110680.0,110670.0,0.06124825]
[1756153184960,0.47947148,110680.0,110670.0,0.08390727]
[1756153185653,0.49361528,110680.0,110670.0,0.08390727]
[1756153185889,0.49361528,110680.0,110670.0,0.26894727]
[1756153186094,0.49361528,110680.0,110670.0,0.44966471]
[1756153186553,0.0141438,110680.0,110670.0,0.44966471]
[1756153186776,0.0141438,110680.0,110670.0,0.51995487]
[1756153186992,0.0141438,110680.0,110670.0,0.52395487]
[1756153187847,0.49361528,110680.0,110670.0,0.33891487]
[1756153188059,0.49361528,110680.0,110670.0,0.45358471]
[1756153189601,0.0141438,110680.0,110670.0,0.72228471]
[1756153190294,0.49361528,110680.0,110670.0,0.72228471]
[1756153190518,0.49361528,110680.0,110670.0,0.72216471]
[1756153191161,0.0141438,110680.0,110670.0,0.72216471]
[1756153191378,0.49361528,110680.0,110670.0,0.72216471]
[1756153192220,0.47947148,110680.0,110670.0,0.72216471]
[1756153193277,0.47947148,110680.0,110670.0,0.80903436]
[1756153193730,0.47947148,110680.0,110670.0,0.72216471]
[1756153194595,0.47947148,110690.0,110680.0,0.18070112]
[1756153194812,0.47947148,110690.0,110680.0,0.18281112]
[1756153195028,0.47947148,110690.0,110680.0,0.18591112]
[1756153195679,0.49607588,110690.0,110680.0,0.00521]
[1756153196088,0.5102185,110690.0,110680.0,0.18591112]
[1756153196304,0.03074702,110690.0,110680.0,0.18591112]
[1756153196518,0.5102185,110690.0,110680.0,0.18591112]
[1756153196736,0.5102185,110690.0,110680.0,0.00521]
[1756153196947,0.4936141,110690.0,110680.0,0.00521]
[1756153197164,0.51047395,110690.0,110680.0,0.18448]
[1756153197382,0.51047395,110690.0,110680.0,0.18748]
[1756153197615,0.4938741,110690.0,110680.0,0.18748]
[1756153197836,0.51047209,110690.0,110680.0,0.18748]
[1756153198249,0.4938741,110690.0,110680.0,0.18748]
[1756153200362,5.87235182,110690.0,110680.0,0.003]
[1756153201038,6.89069839,110690.0,110680.0,0.003]
[1756153201265,0.18070112,110680.0,110670.0,0.01952852]
[1756153201507,6.31336928,110680.0,110670.0,0.01952852]
[1756153201728,6.31336206,110680.0,110670.0,0.01952852]
[1756153201958,6.23266117,110680.0,110670.0,0.01952852]
[1756153202176,6.41336229,110680.0,110670.0,0.01952852]
[1756153202399,6.41334871,110680.0,110670.0,0.01952852]
[1756153202626,6.44343805,110680.0,110670.0,0.01952852]
[1756153202855,0.47947148,110640.0,110630.0,0.22785766]
[1756153203091,5.50091648,110640.0,110630.0,0.22800143]
[1756153203536,5.31679648,110640.0,110630.0,0.22800143]
[1756153203996,5.31679648,110640.0,110630.0,0.25074045]
[1756153203997,0.47947148,110640.0,110630.0,0.25074045]
[1756153204226,0.47947148,110640.0,110630.0,0.24545045]
[1756153204450,0.66355148,110640.0,110630.0,0.22800143]
[1756153204700,5.50087648,110640.0,110630.0,0.22800143]
[1756153204929,5.51280465,110640.0,110630.0,0.22800143]
[1756153205189,5.79357109,110640.0,110630.0,0.20967383]
[1756153205425,5.48950891,110640.0,110630.0,0.20967383]
[1756153205643,5.62687629,110640.0,110630.0,0.20967383]
[1756153206307,5.34287629,110640.0,110630.0,0.21567383]
[1756153206551,5.62687629,110640.0,110630.0,0.21567383]
[1756153206774,5.52683629,110640.0,110630.0,0.21567383]
[1756153207022,5.34287629,110640.0,110630.0,0.21567383]
[1756153207242,5.52683629,110640.0,110630.0,0.20967383]
[1756153207459,5.52683629,110640.0,110630.0,0.21067383]
[1756153207460,5.52679629,110640.0,110630.0,0.21067383]
[1756153208497,5.34287629,110640.0,110630.0,0.21067383]
[1756153208720,0.01415164,110640.0,110630.0,0.59807563]
[1756153208939,0.01090164,110640.0,110630.0,1.09861449]
[1756153209230,0.47947148,110650.0,110640.0,0.19821546]
[1756153209475,0.47947148,110650.0,110640.0,0.20036546]
[1756153209688,0.47947148,110650.0,110640.0,0.20350546]
[1756153210133,0.47947148,110650.0,110640.0,0.38734546]
[1756153210572,0.48161148,110650.0,110640.0,0.02544902]
[1756153210834,0.47947148,110650.0,110640.0,0.21150546]
[1756153211070,0.47947148,110660.0,110650.0,0.18075011]
[1756153211303,0.50485339,110670.0,110650.0,0.20348913]
[1756153211556,5.31679648,110660.0,110650.0,0.38724913]
[1756153211810,5.33545858,110660.0,110650.0,0.01744902]
[1756153212044,5.33331858,110660.0,110650.0,0.01744902]
[1756153212505,5.51703858,110660.0,110650.0,0.01744902]
[1756153212953,5.51917858,110660.0,110650.0,0.01744902]
[1756153213179,5.51917858,110660.0,110650.0,0.005]
[1756153213698,5.52208858,110660.0,110650.0,0.005]
[1756153213939,5.33545858,110660.0,110650.0,0.005]
[1756153214611,5.33545858,110660.0,110640.0,0.20104902]
[1756153214811,5.33545858,110660.0,110640.0,0.19821272]
[1756153214812,5.31679648,110650.0,110640.0,0.19821272]
[1756153215084,0.47947148,110650.0,110640.0,0.01959902]
[1756153215303,0.47947148,110650.0,110640.0,0.01744902]
[1756153215532,0.49361944,110650.0,110640.0,0.01744902]
[1756153216000,0.49575944,110650.0,110640.0,0.01744902]
[1756153216228,4.85147296,110650.0,110640.0,0.01744902]
[1756153216443,4.85147296,110650.0,110640.0,0.02244902]
[1756153216926,4.85147296,110650.0,110640.0,0.02459902]
[1756153217154,5.33094444,110650.0,110640.0,0.02773902]
[1756153217374,0.49361944,110650.0,110640.0,0.20850546]
[1756153217596,0.01414796,110650.0,110640.0,0.28663615]
[1756153217821,0.01414796,110650.0,110640.0,0.20850546]
[1756153218034,0.01414796,110650.0,110640.0,0.28100863]
[1756153218922,0.47947148,110680.0,110670.0,0.19816646]
[1756153219139,0.47947148,110680.0,110670.0,0.38681646]
[1756153219140,0.4960061,110680.0,110670.0,0.38681646]
[1756153219577,0.51015084,110680.0,110670.0,0.38681646]
[1756153220502,0.03067936,110680.0,110670.0,0.39281646]
[1756153220729,0.03069077,110680.0,110670.0,0.39281646]
[1756153221384,0.01654603,110680.0,110670.0,0.39281646]
[1756153221609,0.1832,110710.0,110700.0,0.01744902]
[1756153221861,0.1832,110710.0,110700.0,0.20340749]
[1756153221862,0.01669355,110710.0,110700.0,0.20340749]
[1756153222762,0.49616503,110710.0,110700.0,0.38656749]
[1756153223038,0.49616503,110710.0,110700.0,0.20589902]
[1756153223307,0.49616503,110710.0,110700.0,0.38656749]
[1756153223514,0.49616503,110710.0,110700.0,0.02059902]
[1756153223719,0.49616503,110710.0,110700.0,0.20156902]
[1756153223930,0.49830503,110710.0,110700.0,0.01744902]
[1756153224155,4.85615855,110710.0,110700.0,0.02244902]
[1756153224383,5.34176966,110710.0,110700.0,0.20552902]
[1756153224601,5.33349003,110710.0,110700.0,0.20552902]
[1756153224850,0.49616503,110710.0,110700.0,0.39148749]
[1756153225064,0.49616503,110710.0,110700.0,0.42542271]
[1756153225273,0.49616503,110710.0,110700.0,0.20340749]
[1756153225495,0.51030506,110710.0,110700.0,0.01959902]
[1756153225737,0.51030506,110710.0,110700.0,0.20044902]
[1756153225738,5.34972006,110710.0,110700.0,0.20044902]
[1756153225956,5.34972006,110710.0,110700.0,0.01744902]
[1756153226204,5.34972006,110710.0,110700.0,0.20040902]
[1756153226629,5.34972006,110710.0,110700.0,0.01744902]
[1756153226851,5.34972006,110710.0,110700.0,0.20040902]
[1756153227095,0.03083358,110710.0,110700.0,0.20036902]
[1756153227303,0.04433699,110710.0,110700.0,0.20036902]
[1756153227515,5.36677883,110710.0,110700.0,0.001]
[1756153227725,5.36113347,110710.0,110690.0,0.20032902]
[1756153227942,5.31679648,110700.0,110690.0,0.3840337]
[1756153228152,0.49602128,110700.0,110690.0,0.3861637]
[1756153228581,0.49602128,110700.0,110690.0,0.20547902]
[1756153228840,0.49602128,110700.0,110690.0,0.01957902]
[1756153229073,0.49811128,110700.0,110690.0,0.20028902]
[1756153229305,0.49811128,110700.0,110690.0,0.38097381]
[1756153229559,0.0165498,110700.0,110690.0,0.45679374]
[1756153229798,0.03647894,110710.0,110690.0,0.45779374]
[1756153230015,0.0165498,110700.0,110690.0,0.49471146]
[1756153230243,0.49603799,110700.0,110690.0,0.49571146]
[1756153230666,0.01656651,110700.0,110690.0,0.49873146]
[1756153232247,0.01656651,110700.0,110690.0,0.31589146]
[1756153232515,0.49603799,110700.0,110690.0,0.42790153]
[1756153232711,0.01656651,110700.0,110690.0,0.42790153]
[1756153233459,0.00014375,110710.0,110700.0,0.01744902]
[1756153233749,0.01670279,110710.0,110700.0,0.01744902]
[1756153234008,0.51886279,110710.0,110700.0,0.01744902]
[1756153234221,5.35618779,110710.0,110700.0,0.19996902]
[1756153234454,4.85618779,110710.0,110700.0,0.01744902]
[1756153234697,5.33666927,110710.0,110700.0,0.01744902]
[1756153234911,5.34494934,110710.0,110700.0,0.01744902]
[1756153236073,0.50661434,110710.0,110700.0,0.01744902]
[1756153236315,0.52075495,110710.0,110700.0,0.01744902]
[1756153236539,0.52076329,110710.0,110700.0,0.01744902]
[1756153237007,5.69909829,110710.0,110680.0,0.06952]
[1756153237218,0.47947148,110690.0,110680.0,0.18244]
[1756153237433,0.49603886,110690.0,110680.0,0.19988902]
[1756153237655,0.49818886,110690.0,110680.0,0.19988902]
[1756153238067,0.51018154,110690.0,110680.0,0.20201902]
[1756153238286,0.51018154,110690.0,110680.0,0.38272014]
[1756153239006,0.51018154,110690.0,110680.0,0.38574014]
[1756153239444,0.01414268,110690.0,110680.0,0.395487]
[1756153239893,0.03072511,110690.0,110680.0,0.395487]
[1756153240110,0.03072511,110690.0,110680.0,0.38574014]
[1756153240456,0.03072511,110690.0,110680.0,0.38674014]
[1756153240668,0.51019659,110690.0,110680.0,0.20603902]
[1756153240893,0.51019659,110690.0,110680.0,0.38674014]
[1756153241322,0.03072511,110690.0,110680.0,0.44761099]
[1756153241561,0.03072511,110690.0,110680.0,0.38674014]
[1756153241790,0.51584297,110690.0,110680.0,0.38372014]
[1756153242007,0.01414268,110690.0,110680.0,0.38674014]
[1756153242928,0.49568416,110690.0,110680.0,0.01844902]
[1756153243153,5.33860311,110690.0,110680.0,0.001]
[1756153243374,5.33860311,110690.0,110680.0,0.01844902]
[1756153243375,5.67860311,110690.0,110680.0,0.01844902]
[1756153243589,5.67860311,110690.0,110680.0,0.001]
[1756153244246,0.34,110680.0,110670.0,0.01744902]
[1756153244467,5.67548311,110680.0,110670.0,0.01744902]
[1756153244692,4.85601163,110680.0,110670.0,0.01744902]
[1756153244930,4.85601163,110680.0,110670.0,0.20029646]
[1756153244931,5.33340311,110680.0,110670.0,0.20029646]
[1756153245166,0.66143148,110690.0,110670.0,0.02259902]
[1756153245441,5.32764338,110680.0,110670.0,0.01744902]
[1756153245673,5.33862627,110680.0,110670.0,0.01744902]
[1756153245908,5.33862627,110680.0,110660.0,0.01744902]
[1756153246139,5.31990648,110670.0,110660.0,0.01744902]
[1756153246340,5.33654015,110670.0,110660.0,0.01744902]
[1756153246588,5.33343015,110670.0,110660.0,0.01744902]
[1756153246810,0.47947148,110670.0,110660.0,0.02259902]
[1756153247038,0.48158148,110670.0,110660.0,0.01744902]
[1756153247251,0.49822334,110670.0,110660.0,0.01744902]
[1756153247713,5.33554834,110670.0,110660.0,0.01744902]
[1756153249073,5.33555867,110670.0,110660.0,0.01744902]
[1756153249960,5.85727867,110670.0,110660.0,0.01744902]
[1756153250397,5.85727867,110670.0,110650.0,0.18172]
[1756153250398,5.85727867,110670.0,110650.0,0.01744902]
[1756153250590,5.3224444,110660.0,110650.0,0.01759279]
[1756153250812,5.33560951,110660.0,110650.0,0.00014377]
[1756153251063,5.33866951,110660.0,110650.0,0.00014377]
[1756153251274,5.35281689,110660.0,110650.0,0.00014377]
[1756153251485,5.53143689,110660.0,110650.0,0.01759279]
[1756153252157,5.53139689,110660.0,110650.0,0.01759279]
[1756153252585,5.33310386,110660.0,110650.0,0.01759279]
[1756153252816,5.51474386,110660.0,110650.0,0.01759279]
[1756153253059,0.01414738,110660.0,110650.0,0.2034929]
[1756153253275,0.5,110660.0,110650.0,0.2034929]
[1756153253503,0.48147148,110670.0,110650.0,0.2034929]
[1756153253719,0.002,110670.0,110660.0,0.37974279]
[1756153253969,0.002,110670.0,110660.0,0.38489279]
[1756153254196,0.48147148,110670.0,110660.0,0.20411902]
[1756153254422,0.002,110670.0,110660.0,0.20411902]
[1756153254639,0.48147148,110670.0,110660.0,0.38485279]
[1756153255072,0.002,110670.0,110660.0,0.38485279]
[1756153255506,0.48147148,110670.0,110660.0,0.38485279]
[1756153255931,0.002,110670.0,110660.0,0.38485279]
[1756153256587,0.49560623,110670.0,110660.0,0.01744902]
[1756153256820,5.33293123,110670.0,110660.0,0.01744902]
[1756153257043,5.33293123,110670.0,110660.0,0.20023279]
[1756153257044,0.01414475,110670.0,110660.0,0.20023279]
[1756153257264,0.01979217,110670.0,110660.0,0.02270902]
[1756153257486,0.03844936,110670.0,110660.0,0.02270902]
[1756153257733,0.03844936,110670.0,110660.0,0.20344279]
[1756153257915,0.02179217,110670.0,110660.0,0.20344279]
[1756153258174,0.03844934,110670.0,110660.0,0.02270902]
[1756153258390,0.03844941,110670.0,110660.0,0.38480279]
[1756153258609,0.0384493,110670.0,110660.0,0.38480279]
[1756153258824,0.01979217,110670.0,110660.0,0.38480279]
[1756153260154,0.01414475,110670.0,110660.0,0.38480279]
[1756153260375,0.01414475,110670.0,110660.0,0.44237226]
[1756153260594,0.01414475,110670.0,110660.0,0.92184374]
[1756153261093,0.66067148,110710.0,110700.0,0.19811749]
[1756153261313,0.18116,110720.0,110710.0,0.01744902]
[1756153261528,0.18116,110720.0,110680.0,0.19292984]
[1756153261529,0.5,110710.0,110680.0,0.19292984]
[1756153261747,0.02499626,110710.0,110700.0,0.01744902]
[1756153261969,0.52499626,110710.0,110700.0,0.02270902]
[1756153262183,0.02698626,110710.0,110690.0,0.19856902]
[1756153262393,0.02713001,110710.0,110690.0,0.19856902]
[1756153262611,0.52713001,110710.0,110690.0,0.19856902]
[1756153262828,0.52713001,110710.0,110690.0,0.01744902]
[1756153262829,0.47947148,110700.0,110690.0,0.01744902]
[1756153263018,5.12271885,110700.0,110690.0,0.19856902]
[1756153263268,0.49812485,110700.0,110690.0,0.19856902]
[1756153263484,0.67916485,110700.0,110690.0,0.01744902]
[1756153263938,0.68224485,110700.0,110690.0,0.01744902]
[1756153265036,5.31517178,110700.0,110670.0,0.00321]
[1756153265292,0.47947148,110680.0,110660.0,0.18549519]
[1756153265560,0.4851189,110670.0,110660.0,0.11597519]
[1756153265892,5.10406548,110670.0,110660.0,0.13547421]
[1756153266073,0.18096,110680.0,110670.0,0.01744902]
[1756153266504,5.28701548,110680.0,110640.0,0.2623056]
[1756153266506,0.01414473,110670.0,110640.0,0.18980279]
[1756153266671,0.97947148,110660.0,110650.0,0.01744902]
[1756153266881,0.48454148,110660.0,110630.0,0.65296167]
[1756153267114,0.00564844,110650.0,110630.0,0.64392254]
[1756153267326,0.00564844,110650.0,110630.0,0.28226006]
[1756153267544,4.626584,110640.0,110630.0,0.20953006]
[1756153267974,5.10605548,110640.0,110630.0,0.20953006]
[1756153268188,0.48146148,110640.0,110630.0,0.20953006]
[1756153268647,0.47947148,110640.0,110630.0,0.21158006]
[1756153268865,8.647e-05,110640.0,110630.0,0.39657284]
[1756153269076,8.647e-05,110640.0,110630.0,0.41402186]
[1756153269746,8.647e-05,110640.0,110630.0,0.89349334]
[1756153271133,8.647e-05,110640.0,110630.0,0.89249334]
[1756153271350,8.647e-05,110640.0,110630.0,0.89549334]
[1756153271564,8.647e-05,110640.0,110630.0,1.07613334]
[1756153271789,8.647e-05,110640.0,110630.0,0.41302186]
[1756153271999,8.647e-05,110640.0,110630.0,0.41902186]
[1756153272223,8.647e-05,110640.0,110630.0,0.68649151]
[1756153272666,8.647e-05,110640.0,110630.0,0.41902186]
[1756153272892,8.647e-05,110640.0,110630.0,0.57613284]
[1756153273125,8.647e-05,110640.0,110630.0,0.57692284]
[1756153273325,8.647e-05,110640.0,110630.0,0.59758186]
[1756153274410,8.647e-05,110640.0,110630.0,0.59358186]
[1756153274614,8.647e-05,110640.0,110630.0,0.68045151]
[1756153275050,8.647e-05,110640.0,110630.0,1.15992299]
[1756153275282,8.647e-05,110640.0,110630.0,1.16192299]
[1756153275505,0.01423326,110640.0,110630.0,1.15992299]
[1756153275933,0.01423326,110640.0,110630.0,1.16276299]
[1756153277304,0.01423326,110640.0,110630.0,1.16676299]
[1756153277745,0.01423326,110640.0,110630.0,1.16376299]
[1756153277984,0.01423326,110640.0,110630.0,1.16976299]
[1756153278634,8.647e-05,110640.0,110630.0,1.16976299]
[1756153279279,0.29250705,110680.0,110670.0,0.01744902]
[1756153279479,4.92225767,110680.0,110670.0,0.01744902]
[1756153279704,4.92225767,110680.0,110640.0,0.19300004]
[1756153279922,4.92225767,110680.0,110650.0,0.1802]
[1756153279923,0.47947148,110660.0,110650.0,0.1802]
[1756153280146,0.48146148,110660.0,110650.0,0.1802]
[1756153280610,0.48146148,110660.0,110650.0,0.19764902]
[1756153280826,0.00199,110660.0,110650.0,0.19764902]
[1756153281599,0.48454148,110660.0,110630.0,0.40256197]
[1756153281829,0.47947148,110650.0,110640.0,0.18012]
[1756153282085,5.10913548,110650.0,110630.0,0.20953006]
[1756153282302,4.624594,110640.0,110630.0,0.57039284]